[Event "Late-Titled-Tuesday-Blitz-July-09-2024"]
[Site "Chess.com"]
[Date "2024.07.09"]
[Round "9"]
[White "TioCridineno"]
[Black "dodorox"]
[Result "1-0"]
[WhiteElo "2436"]
[BlackElo "2180"]
[TimeControl "180+1"]
[EndTime "15:44:03 PDT"]
[Termination "TioCridineno won on time"]

1. e4 {[%clk 0:03:00.9]} 1... e6 {[%clk 0:02:58.7]} 2. d4 {[%clk 0:03:00.7]}
2... d5 {[%clk 0:02:59.4]} 3. Nc3 {[%clk 0:03:01.2]} 3... Nf6 {[%clk 0:02:58.8]}
4. e5 {[%clk 0:03:00.6]} 4... Nfd7 {[%clk 0:02:59.5]} 5. Nce2 {[%clk 0:03:01.1]}
5... c5 {[%clk 0:02:59.2]} 6. c3 {[%clk 0:03:01.6]} 6... Nc6 {[%clk 0:02:59.2]}
7. Nf3 {[%clk 0:03:02.1]} 7... a6 {[%clk 0:02:58.8]} 8. h4 {[%clk 0:03:01.2]}
8... b5 {[%clk 0:02:59.2]} 9. Nf4 {[%clk 0:03:01.2]} 9... b4 {[%clk 0:02:56.2]}
10. Bd3 {[%clk 0:02:59.9]} 10... Qb6 {[%clk 0:02:42.5]} 11. Bc2 {[%clk 0:02:24]}
11... a5 {[%clk 0:02:31.5]} 12. O-O {[%clk 0:02:23.2]} 12... Ba6 {[%clk
0:02:18]} 13. Re1 {[%clk 0:02:22.9]} 13... Be7 {[%clk 0:02:04.6]} 14. Be3 {[%clk
0:02:17.5]} 14... h6 {[%clk 0:02:00.9]} 15. h5 {[%clk 0:02:08.1]} 15... Rc8
{[%clk 0:01:37.3]} 16. Rb1 {[%clk 0:02:05.3]} 16... Na7 {[%clk 0:01:30.8]} 17.
a4 {[%clk 0:01:43.7]} 17... c4 {[%clk 0:01:07.9]} 18. Ra1 {[%clk 0:01:25.2]}
18... Nc6 {[%clk 0:00:51.6]} 19. g3 {[%clk 0:01:24.6]} 19... Rb8 {[%clk
0:00:49.9]} 20. Kg2 {[%clk 0:01:24.3]} 20... b3 {[%clk 0:00:31.8]} 21. Bb1
{[%clk 0:01:23.9]} 21... Kd8 {[%clk 0:00:32.4]} 22. Rh1 {[%clk 0:01:07.3]} 22...
Kc7 {[%clk 0:00:32.3]} 23. Nh4 {[%clk 0:01:07.1]} 23... Rbg8 {[%clk 0:00:26.3]}
24. Ne2 {[%clk 0:01:05.7]} 24... Bc8 {[%clk 0:00:19.4]} 25. f4 {[%clk
0:01:05.3]} 25... Bxh4 {[%clk 0:00:15.2]} 26. Rxh4 {[%clk 0:01:04.8]} 26... Ne7
{[%clk 0:00:15.7]} 27. Kf3 {[%clk 0:00:57.7]} 27... Nf8 {[%clk 0:00:14.9]} 28.
g4 {[%clk 0:00:57.3]} 28... g5 {[%clk 0:00:10.6]} 29. hxg6 {[%clk 0:00:54.6]}
29... Nfxg6 {[%clk 0:00:07.1]} 30. Rh1 {[%clk 0:00:54.3]} 30... Bd7 {[%clk
0:00:06.3]} 31. Ng3 {[%clk 0:00:51.7]} 31... Qb8 {[%clk 0:00:06.6]} 32. Nh5
{[%clk 0:00:51.6]} 32... Qf8 {[%clk 0:00:03.3]} 33. Kf2 {[%clk 0:00:46.4]} 33...
Nc6 {[%clk 0:00:02.7]} 34. Nf6 {[%clk 0:00:45.7]} 34... Rg7 {[%clk 0:00:02.1]}
35. Qf3 {[%clk 0:00:45.5]} 35... Nge7 {[%clk 0:00:02.1]} 36. Rh4 {[%clk
0:00:37.6]} 36... Bc8 {[%clk 0:00:02.3]} 37. Ke2 {[%clk 0:00:27.3]} 37... Ng6
{[%clk 0:00:02.7]} 38. Rh1 {[%clk 0:00:25.7]} 38... Bd7 {[%clk 0:00:03]} 39. Bf2
{[%clk 0:00:25.7]} 39... Nce7 {[%clk 0:00:02.7]} 40. f5 {[%clk 0:00:24.7]} 40...
exf5 {[%clk 0:00:01.6]} 41. gxf5 {[%clk 0:00:25]} 1-0

[Event "Late-Titled-Tuesday-Blitz-July-09-2024"]
[Site "Chess.com"]
[Date "2024.07.09"]
[Round "9"]
[White "c63_amg"]
[Black "i_like_explosions"]
[Result "1-0"]
[WhiteElo "2775"]
[BlackElo "2555"]
[TimeControl "180+1"]
[EndTime "15:44:04 PDT"]
[Termination "c63_amg won by resignation"]

1. e4 {[%clk 0:02:59.3]} 1... c5 {[%clk 0:02:59.8]} 2. Nf3 {[%clk 0:02:59.1]}
2... Nc6 {[%clk 0:02:59.7]} 3. Bb5 {[%clk 0:02:57.2]} 3... e6 {[%clk 0:02:59.7]}
4. Bxc6 {[%clk 0:02:54]} 4... bxc6 {[%clk 0:03:00.6]} 5. O-O {[%clk 0:02:53.6]}
5... Qc7 {[%clk 0:02:59.9]} 6. d3 {[%clk 0:02:53]} 6... Ne7 {[%clk 0:02:58.6]}
7. Re1 {[%clk 0:02:53.9]} 7... Ng6 {[%clk 0:02:58.8]} 8. b3 {[%clk 0:02:47.9]}
8... Be7 {[%clk 0:02:58]} 9. Bb2 {[%clk 0:02:48.6]} 9... O-O {[%clk 0:02:57.3]}
10. Nbd2 {[%clk 0:02:48.1]} 10... e5 {[%clk 0:02:53.9]} 11. h4 {[%clk
0:02:38.6]} 11... d6 {[%clk 0:02:54.2]} 12. h5 {[%clk 0:02:38.9]} 12... Nf4
{[%clk 0:02:54.3]} 13. h6 {[%clk 0:02:39.4]} 13... gxh6 {[%clk 0:02:47.5]} 14.
g3 {[%clk 0:02:38.9]} 14... Ne6 {[%clk 0:02:43.8]} 15. Nc4 {[%clk 0:02:34.8]}
15... Nd4 {[%clk 0:02:40.2]} 16. Nxd4 {[%clk 0:02:30.6]} 16... cxd4 {[%clk
0:02:38.1]} 17. Bc1 {[%clk 0:02:26.6]} 17... Bg5 {[%clk 0:02:37.3]} 18. Qh5
{[%clk 0:02:18.1]} 18... Bxc1 {[%clk 0:02:31.8]} 19. Raxc1 {[%clk 0:02:18]}
19... Kg7 {[%clk 0:02:32.2]} 20. f4 {[%clk 0:02:11.4]} 20... f6 {[%clk
0:02:32.3]} 21. Re2 {[%clk 0:01:59.9]} 21... Be6 {[%clk 0:02:12]} 22. Rh2 {[%clk
0:01:57.7]} 22... Bxc4 {[%clk 0:02:09.8]} 23. Qxh6+ {[%clk 0:01:57.9]} 23... Kh8
{[%clk 0:02:08.4]} 24. bxc4 {[%clk 0:01:58.6]} 24... Qg7 {[%clk 0:02:08.3]} 25.
Qh4 {[%clk 0:01:48.3]} 25... f5 {[%clk 0:02:01.8]} 26. fxe5 {[%clk 0:00:58]}
26... dxe5 {[%clk 0:01:56.7]} 27. exf5 {[%clk 0:00:58.7]} 27... Rxf5 {[%clk
0:01:56.8]} 28. Rf1 {[%clk 0:00:56.3]} 28... Rxf1+ {[%clk 0:01:41.5]} 29. Kxf1
{[%clk 0:00:57.2]} 29... Rf8+ {[%clk 0:01:39.1]} 30. Rf2 {[%clk 0:00:51.3]}
30... Rxf2+ {[%clk 0:01:33.5]} 31. Kxf2 {[%clk 0:00:52.2]} 31... Qf7+ {[%clk
0:01:33.7]} 32. Kg2 {[%clk 0:00:49.3]} 32... Qc7 {[%clk 0:01:07.4]} 33. Qf6+
{[%clk 0:00:46.6]} 33... Kg8 {[%clk 0:01:07.5]} 34. c5 {[%clk 0:00:45.1]} 34...
a5 {[%clk 0:01:01.6]} 35. a4 {[%clk 0:00:38.4]} 35... h5 {[%clk 0:00:29]} 36.
Qg6+ {[%clk 0:00:32.7]} 36... Kf8 {[%clk 0:00:27.2]} 37. Qxh5 {[%clk 0:00:32.4]}
37... Kg7 {[%clk 0:00:17.1]} 38. Qg5+ {[%clk 0:00:30.1]} 38... Kf7 {[%clk
0:00:17.2]} 39. Qf5+ {[%clk 0:00:30.7]} 39... Kg7 {[%clk 0:00:16.6]} 40. Qe6
{[%clk 0:00:31.3]} 40... Kf8 {[%clk 0:00:09.1]} 41. Qd6+ {[%clk 0:00:19.4]}
41... Qxd6 {[%clk 0:00:09.5]} 42. cxd6 {[%clk 0:00:20.3]} 42... Ke8 {[%clk
0:00:10.2]} 43. Kf3 {[%clk 0:00:21]} 43... Kd7 {[%clk 0:00:10.9]} 44. Ke4 {[%clk
0:00:21.6]} 44... Kxd6 {[%clk 0:00:11.3]} 45. g4 {[%clk 0:00:22.3]} 45... Ke6
{[%clk 0:00:09.6]} 46. g5 {[%clk 0:00:23.2]} 46... c5 {[%clk 0:00:10]} 47. g6
{[%clk 0:00:23.7]} 47... Kf6 {[%clk 0:00:06.8]} 48. g7 {[%clk 0:00:24.6]} 48...
Kxg7 {[%clk 0:00:07.1]} 49. Kxe5 {[%clk 0:00:25.5]} 49... Kg6 {[%clk 0:00:05.8]}
50. Kd5 {[%clk 0:00:26.2]} 50... Kf5 {[%clk 0:00:06.3]} 51. Kxc5 {[%clk
0:00:26.9]} 51... Ke5 {[%clk 0:00:06.5]} 52. Kc4 {[%clk 0:00:27.1]} 1-0

[Event "Late-Titled-Tuesday-Blitz-July-09-2024"]
[Site "Chess.com"]
[Date "2024.07.09"]
[Round "9"]
[White "UB_TheQueen"]
[Black "TC2304"]
[Result "0-1"]
[WhiteElo "2108"]
[BlackElo "2355"]
[TimeControl "180+1"]
[EndTime "15:44:05 PDT"]
[Termination "TC2304 won on time"]

1. e4 {[%clk 0:03:00.9]} 1... e6 {[%clk 0:03:00.4]} 2. d4 {[%clk 0:02:59.7]}
2... d5 {[%clk 0:03:01]} 3. Nc3 {[%clk 0:02:59.1]} 3... dxe4 {[%clk 0:03:01.5]}
4. Nxe4 {[%clk 0:02:59]} 4... Bd7 {[%clk 0:03:02.3]} 5. Nf3 {[%clk 0:02:57.8]}
5... Bc6 {[%clk 0:03:02.8]} 6. Bd3 {[%clk 0:02:57.5]} 6... Nd7 {[%clk
0:03:03.3]} 7. Qe2 {[%clk 0:02:57.8]} 7... Ngf6 {[%clk 0:03:04]} 8. Bg5 {[%clk
0:02:57.6]} 8... Be7 {[%clk 0:03:01.8]} 9. Nxf6+ {[%clk 0:02:57.7]} 9... Bxf6
{[%clk 0:02:52.8]} 10. Bxf6 {[%clk 0:02:57.1]} 10... Qxf6 {[%clk 0:02:51.1]} 11.
O-O-O {[%clk 0:02:56.2]} 11... Bxf3 {[%clk 0:02:50]} 12. gxf3 {[%clk 0:02:51.7]}
12... Qxd4 {[%clk 0:02:26]} 13. Kb1 {[%clk 0:02:25.3]} 13... O-O-O {[%clk
0:02:11.2]} 14. Rhg1 {[%clk 0:02:18]} 14... Qf6 {[%clk 0:02:01.9]} 15. Qe3
{[%clk 0:02:06.4]} 15... Kb8 {[%clk 0:01:54.8]} 16. Rg4 {[%clk 0:02:06.4]} 16...
g6 {[%clk 0:01:38.4]} 17. Ra4 {[%clk 0:02:04.2]} 17... Nb6 {[%clk 0:01:38.6]}
18. Ra3 {[%clk 0:01:57.9]} 18... Rd5 {[%clk 0:01:32.7]} 19. Rg1 {[%clk
0:01:49.3]} 19... Rhd8 {[%clk 0:01:28.9]} 20. Rb3 {[%clk 0:01:31.5]} 20... Qd4
{[%clk 0:01:19.6]} 21. Qe2 {[%clk 0:01:24.1]} 21... h5 {[%clk 0:01:17.5]} 22. a3
{[%clk 0:01:19.6]} 22... Qe5 {[%clk 0:01:14.7]} 23. Qd2 {[%clk 0:01:03.4]} 23...
Qxh2 {[%clk 0:01:10]} 24. Re1 {[%clk 0:00:58.8]} 24... Qd6 {[%clk 0:01:01.4]}
25. Qe3 {[%clk 0:00:57.3]} 25... Rd4 {[%clk 0:00:58.8]} 26. Qh6 {[%clk
0:00:49.9]} 26... Qf4 {[%clk 0:00:54.1]} 27. Qg7 {[%clk 0:00:38.8]} 27... Qxf3
{[%clk 0:00:45.6]} 28. a4 {[%clk 0:00:15.5]} 28... a5 {[%clk 0:00:31.6]} 29. Re5
{[%clk 0:00:11.3]} 29... Qh1+ {[%clk 0:00:27.5]} 30. Ka2 {[%clk 0:00:11]} 30...
Rxa4+ {[%clk 0:00:28]} 31. Ra3 {[%clk 0:00:11.4]} 31... Rxa3+ {[%clk 0:00:28.3]}
32. Kxa3 {[%clk 0:00:12]} 32... Qa1+ {[%clk 0:00:22.5]} 33. Kb3 {[%clk
0:00:11.7]} 33... a4+ {[%clk 0:00:23]} 34. Kc3 {[%clk 0:00:12]} 34... Nd5+
{[%clk 0:00:20.6]} 35. Kd2 {[%clk 0:00:10.9]} 35... Qxb2 {[%clk 0:00:21]} 36.
Rxd5 {[%clk 0:00:07.8]} 36... Qxg7 {[%clk 0:00:16.7]} 37. Rxd8+ {[%clk
0:00:07.8]} 37... Ka7 {[%clk 0:00:17.4]} 38. Be4 {[%clk 0:00:05.5]} 38... a3
{[%clk 0:00:16.1]} 39. Rd3 {[%clk 0:00:02.7]} 39... Qb2 {[%clk 0:00:14.6]} 40.
Rb3 {[%clk 0:00:01.7]} 40... Qxb3 {[%clk 0:00:14.9]} 41. cxb3 {[%clk 0:00:01.9]}
41... a2 {[%clk 0:00:15.5]} 0-1

[Event "Late-Titled-Tuesday-Blitz-July-09-2024"]
[Site "Chess.com"]
[Date "2024.07.09"]
[Round "9"]
[White "AcostaPablo"]
[Black "bancsoo"]
[Result "0-1"]
[WhiteElo "2710"]
[BlackElo "2857"]
[TimeControl "180+1"]
[EndTime "15:44:07 PDT"]
[Termination "bancsoo won by checkmate"]

1. d4 {[%clk 0:03:00]} 1... Nf6 {[%clk 0:02:58.7]} 2. Nf3 {[%clk 0:03:00.3]}
2... d5 {[%clk 0:02:56.7]} 3. c4 {[%clk 0:03:00]} 3... c6 {[%clk 0:02:56.7]} 4.
e3 {[%clk 0:02:59.8]} 4... Bf5 {[%clk 0:02:55.9]} 5. Nc3 {[%clk 0:03:00.1]} 5...
e6 {[%clk 0:02:56.2]} 6. Be2 {[%clk 0:02:59.7]} 6... Bd6 {[%clk 0:02:52.2]} 7.
O-O {[%clk 0:02:59.5]} 7... O-O {[%clk 0:02:52.2]} 8. b3 {[%clk 0:02:59.1]} 8...
Nbd7 {[%clk 0:02:52.1]} 9. Bb2 {[%clk 0:02:58.7]} 9... h6 {[%clk 0:02:48.1]} 10.
Ne1 {[%clk 0:02:50.9]} 10... a5 {[%clk 0:02:42.6]} 11. f3 {[%clk 0:02:48]} 11...
Bh7 {[%clk 0:02:32.8]} 12. Bd3 {[%clk 0:02:44.9]} 12... Bxd3 {[%clk 0:02:27.5]}
13. Nxd3 {[%clk 0:02:43.9]} 13... Qe7 {[%clk 0:02:23.6]} 14. f4 {[%clk
0:02:34.8]} 14... c5 {[%clk 0:02:04.9]} 15. cxd5 {[%clk 0:02:26.3]} 15... cxd4
{[%clk 0:01:59.8]} 16. exd4 {[%clk 0:02:25.9]} 16... Nxd5 {[%clk 0:01:58.8]} 17.
Nxd5 {[%clk 0:02:19.8]} 17... exd5 {[%clk 0:01:59.7]} 18. Re1 {[%clk 0:02:17.2]}
18... Qd8 {[%clk 0:01:56.2]} 19. Qf3 {[%clk 0:02:14.8]} 19... Nf6 {[%clk
0:01:55.9]} 20. Nc5 {[%clk 0:01:54.8]} 20... b6 {[%clk 0:01:50.6]} 21. Nb7
{[%clk 0:01:30.7]} 21... Qd7 {[%clk 0:01:50.5]} 22. Nxd6 {[%clk 0:01:31.1]}
22... Qxd6 {[%clk 0:01:51.4]} 23. a4 {[%clk 0:01:31.4]} 23... Rfe8 {[%clk
0:01:50]} 24. Rxe8+ {[%clk 0:01:27.1]} 24... Rxe8 {[%clk 0:01:49.3]} 25. Ba3
{[%clk 0:01:27.4]} 25... Qd7 {[%clk 0:01:42.1]} 26. Rc1 {[%clk 0:01:12]} 26...
Rc8 {[%clk 0:01:30.6]} 27. Qd3 {[%clk 0:00:55.9]} 27... Ne4 {[%clk 0:01:17.1]}
28. g3 {[%clk 0:00:50.7]} 28... h5 {[%clk 0:01:15.1]} 29. Kg2 {[%clk 0:00:39.6]}
29... h4 {[%clk 0:01:12.8]} 30. Qb5 {[%clk 0:00:35.2]} 30... Qg4 {[%clk
0:00:22.2]} 31. Rxc8+ {[%clk 0:00:24]} 31... Qxc8 {[%clk 0:00:22.1]} 32. Qxd5
{[%clk 0:00:24.3]} 32... Qc2+ {[%clk 0:00:18.3]} 33. Kh3 {[%clk 0:00:14.1]}
33... Nf2+ {[%clk 0:00:12.2]} 34. Kxh4 {[%clk 0:00:13.5]} 34... Qh7+ {[%clk
0:00:09.5]} 35. Qh5 {[%clk 0:00:14]} 35... Qe4 {[%clk 0:00:08.4]} 36. Qe5 {[%clk
0:00:09.2]} 36... Qg2 {[%clk 0:00:08.5]} 37. Qe3 {[%clk 0:00:02.2]} 37... Qh3+
{[%clk 0:00:06.1]} 38. Kg5 {[%clk 0:00:02.7]} 38... Qg4# {[%clk 0:00:06.7]} 0-1

[Event "Late-Titled-Tuesday-Blitz-July-09-2024"]
[Site "Chess.com"]
[Date "2024.07.09"]
[Round "9"]
[White "bob1263"]
[Black "eightbyeightchess"]
[Result "1-0"]
[WhiteElo "2532"]
[BlackElo "2387"]
[TimeControl "180+1"]
[EndTime "15:44:08 PDT"]
[Termination "bob1263 won by checkmate"]

1. d4 {[%clk 0:02:59.6]} 1... d5 {[%clk 0:02:57.2]} 2. c4 {[%clk 0:02:58.4]}
2... c6 {[%clk 0:02:57.4]} 3. Nf3 {[%clk 0:02:56.9]} 3... Nf6 {[%clk 0:02:57.6]}
4. e3 {[%clk 0:02:54.8]} 4... a6 {[%clk 0:02:56.2]} 5. Nbd2 {[%clk 0:02:49.5]}
5... b5 {[%clk 0:02:55.3]} 6. b3 {[%clk 0:02:48.6]} 6... Bg4 {[%clk 0:02:54.7]}
7. Bd3 {[%clk 0:02:46.8]} 7... e6 {[%clk 0:02:55]} 8. Qc2 {[%clk 0:02:45.9]}
8... Nbd7 {[%clk 0:02:54.7]} 9. O-O {[%clk 0:02:39.4]} 9... Bd6 {[%clk
0:02:54.9]} 10. Bb2 {[%clk 0:02:38.4]} 10... O-O {[%clk 0:02:54.4]} 11. Ne5
{[%clk 0:02:37.3]} 11... Bh5 {[%clk 0:02:51.5]} 12. f4 {[%clk 0:02:27.1]} 12...
Rc8 {[%clk 0:02:48.5]} 13. c5 {[%clk 0:02:18.2]} 13... Bb8 {[%clk 0:02:47.5]}
14. a4 {[%clk 0:02:13.4]} 14... Bg6 {[%clk 0:02:41]} 15. axb5 {[%clk 0:02:11.4]}
15... axb5 {[%clk 0:02:26.9]} 16. Ra6 {[%clk 0:01:50.4]} 16... Nxe5 {[%clk
0:02:22.4]} 17. fxe5 {[%clk 0:01:42.5]} 17... Nd7 {[%clk 0:02:02]} 18. e4 {[%clk
0:01:34]} 18... dxe4 {[%clk 0:01:36.2]} 19. Nxe4 {[%clk 0:01:32.5]} 19... Qh4
{[%clk 0:00:46.7]} 20. g3 {[%clk 0:00:48.9]} 20... Qh5 {[%clk 0:00:39.7]} 21.
Bc1 {[%clk 0:00:30.1]} 21... Rfd8 {[%clk 0:00:24.8]} 22. Bf4 {[%clk 0:00:22.1]}
22... Bf5 {[%clk 0:00:17.2]} 23. Nf2 {[%clk 0:00:17.8]} 23... Bxd3 {[%clk
0:00:15]} 24. Nxd3 {[%clk 0:00:16.4]} 24... Qg6 {[%clk 0:00:14.9]} 25. Qc3
{[%clk 0:00:15.7]} 25... Nf8 {[%clk 0:00:12.5]} 26. Be3 {[%clk 0:00:13.1]} 26...
Qh5 {[%clk 0:00:11.5]} 27. Nf4 {[%clk 0:00:12.7]} 27... Qg4 {[%clk 0:00:10.9]}
28. Bf2 {[%clk 0:00:12.1]} 28... Ng6 {[%clk 0:00:10.5]} 29. Nxg6 {[%clk
0:00:11.1]} 29... Qxg6 {[%clk 0:00:11.4]} 30. Qf3 {[%clk 0:00:10.2]} 30... Rd5
{[%clk 0:00:10]} 31. Ra8 {[%clk 0:00:08.7]} 31... h6 {[%clk 0:00:09]} 32. Rfa1
{[%clk 0:00:07.8]} 32... Qc2 {[%clk 0:00:05.8]} 33. Kg2 {[%clk 0:00:06.9]} 33...
Qb2 {[%clk 0:00:03.9]} 34. R1a7 {[%clk 0:00:05.6]} 34... Bxa7 {[%clk 0:00:01.5]}
35. Rxc8+ {[%clk 0:00:04.7]} 35... Kh7 {[%clk 0:00:02.1]} 36. Qxf7 {[%clk
0:00:04.5]} 36... Rxd4 {[%clk 0:00:02.3]} 37. Qg8+ {[%clk 0:00:03.6]} 37... Kg6
{[%clk 0:00:02.7]} 38. Qxe6+ {[%clk 0:00:03.5]} 38... Kh7 {[%clk 0:00:02]} 39.
Qf5+ {[%clk 0:00:03.6]} 39... g6 {[%clk 0:00:02.3]} 40. Qf7# {[%clk 0:00:03.7]}
1-0

[Event "Late-Titled-Tuesday-Blitz-July-09-2024"]
[Site "Chess.com"]
[Date "2024.07.09"]
[Round "9"]
[White "PapaieDudu"]
[Black "LoonsDeKoeben"]
[Result "1-0"]
[WhiteElo "2417"]
[BlackElo "2423"]
[TimeControl "180+1"]
[EndTime "15:44:13 PDT"]
[Termination "PapaieDudu won by checkmate"]

1. e4 {[%clk 0:02:59]} 1... c6 {[%clk 0:03:00]} 2. Nf3 {[%clk 0:02:57.3]} 2...
d5 {[%clk 0:03:00.2]} 3. e5 {[%clk 0:02:56.8]} 3... c5 {[%clk 0:02:57.8]} 4. c4
{[%clk 0:02:55.7]} 4... d4 {[%clk 0:02:52.8]} 5. d3 {[%clk 0:02:55.6]} 5... Nc6
{[%clk 0:02:53.2]} 6. Bf4 {[%clk 0:02:54.6]} 6... Qc7 {[%clk 0:02:50]} 7. Bg3
{[%clk 0:02:53.9]} 7... e6 {[%clk 0:02:50.1]} 8. Be2 {[%clk 0:02:49.4]} 8...
Nge7 {[%clk 0:02:50.5]} 9. Nbd2 {[%clk 0:02:41.6]} 9... h6 {[%clk 0:02:46.5]}
10. Ne4 {[%clk 0:02:36.8]} 10... Nf5 {[%clk 0:02:46.7]} 11. Bf4 {[%clk
0:02:13.2]} 11... g5 {[%clk 0:02:46.3]} 12. Nf6+ {[%clk 0:02:10.6]} 12... Ke7
{[%clk 0:02:46.5]} 13. Nxg5 {[%clk 0:02:00.9]} 13... Nxe5 {[%clk 0:02:29.2]} 14.
Nge4 {[%clk 0:01:35.7]} 14... Nxd3+ {[%clk 0:02:25.3]} 15. Qxd3 {[%clk
0:01:29.1]} 15... Qxf4 {[%clk 0:02:26.2]} 16. g3 {[%clk 0:01:25]} 16... Qe5
{[%clk 0:02:17.2]} 17. O-O {[%clk 0:01:13.9]} 17... Bd7 {[%clk 0:02:07.2]} 18.
Nxd7 {[%clk 0:01:07.2]} 18... Kxd7 {[%clk 0:02:04.7]} 19. Bf3 {[%clk 0:00:59.4]}
19... Qc7 {[%clk 0:01:40.8]} 20. Bg2 {[%clk 0:00:51.5]} 20... Be7 {[%clk
0:01:38.4]} 21. Rab1 {[%clk 0:00:37.6]} 21... a5 {[%clk 0:01:09]} 22. b3 {[%clk
0:00:36.5]} 22... Rhd8 {[%clk 0:01:08.2]} 23. a3 {[%clk 0:00:35.1]} 23... Ke8
{[%clk 0:01:07.7]} 24. Rfd1 {[%clk 0:00:32.9]} 24... Kf8 {[%clk 0:01:06.4]} 25.
Qe2 {[%clk 0:00:30.1]} 25... Kg8 {[%clk 0:01:02.5]} 26. Qh5 {[%clk 0:00:28.4]}
26... Qe5 {[%clk 0:00:57.5]} 27. g4 {[%clk 0:00:22]} 27... Kh7 {[%clk
0:00:51.4]} 28. gxf5 {[%clk 0:00:20.9]} 28... Rg8 {[%clk 0:00:49.9]} 29. Qxf7+
{[%clk 0:00:18.3]} 29... Rg7 {[%clk 0:00:50.2]} 30. Qxe6 {[%clk 0:00:17.3]}
30... Qf4 {[%clk 0:00:49.8]} 31. Ng3 {[%clk 0:00:16.4]} 31... Re8 {[%clk
0:00:43.1]} 32. Qe4 {[%clk 0:00:15.5]} 32... Qxe4 {[%clk 0:00:40.2]} 33. Bxe4
{[%clk 0:00:15.8]} 33... Reg8 {[%clk 0:00:41]} 34. f6+ {[%clk 0:00:15.5]} 34...
Kh8 {[%clk 0:00:40.7]} 35. fxg7+ {[%clk 0:00:15.9]} 35... Kxg7 {[%clk
0:00:41.6]} 36. Re1 {[%clk 0:00:15.8]} 36... Kf6 {[%clk 0:00:41.5]} 37. Bd5
{[%clk 0:00:15.8]} 37... Rg7 {[%clk 0:00:38.9]} 38. Re6+ {[%clk 0:00:16.1]}
38... Kg5 {[%clk 0:00:39.4]} 39. Rbe1 {[%clk 0:00:15]} 39... Bf6 {[%clk
0:00:39.1]} 40. Kh1 {[%clk 0:00:13.4]} 40... Bd8 {[%clk 0:00:32]} 41. f4+ {[%clk
0:00:11.4]} 41... Kg4 {[%clk 0:00:30.8]} 42. Rf1 {[%clk 0:00:11.3]} 42... d3
{[%clk 0:00:22.9]} 43. Bf3+ {[%clk 0:00:11.3]} 43... Kxf4 {[%clk 0:00:23.2]} 44.
Bh5+ {[%clk 0:00:11.4]} 44... Kg5 {[%clk 0:00:23.1]} 45. Rf5+ {[%clk 0:00:11.5]}
45... Kh4 {[%clk 0:00:23]} 46. Re4+ {[%clk 0:00:12]} 46... Kh3 {[%clk
0:00:23.1]} 47. Bf3 {[%clk 0:00:11.3]} 47... Bg5 {[%clk 0:00:17.7]} 48. Bg2#
{[%clk 0:00:11.4]} 1-0

[Event "Late-Titled-Tuesday-Blitz-July-09-2024"]
[Site "Chess.com"]
[Date "2024.07.09"]
[Round "9"]
[White "RodriQA"]
[Black "AlexZambrano"]
[Result "1-0"]
[WhiteElo "2449"]
[BlackElo "2345"]
[TimeControl "180+1"]
[EndTime "15:44:16 PDT"]
[Termination "RodriQA won on time"]

1. b4 {[%clk 0:03:00.9]} 1... a5 {[%clk 0:02:55.4]} 2. b5 {[%clk 0:02:59.7]}
2... b6 {[%clk 0:02:53.7]} 3. Nf3 {[%clk 0:02:58.5]} 3... d6 {[%clk 0:02:52.9]}
4. d4 {[%clk 0:02:53.5]} 4... g6 {[%clk 0:02:45.7]} 5. Bf4 {[%clk 0:02:40.2]}
5... Bg7 {[%clk 0:02:45.2]} 6. e3 {[%clk 0:02:40.7]} 6... Bb7 {[%clk 0:02:40.7]}
7. h3 {[%clk 0:02:34.9]} 7... Nd7 {[%clk 0:02:36.8]} 8. Be2 {[%clk 0:02:29.7]}
8... e5 {[%clk 0:02:36.5]} 9. Bh2 {[%clk 0:02:23.5]} 9... Ne7 {[%clk 0:02:26.8]}
10. O-O {[%clk 0:02:19.5]} 10... O-O {[%clk 0:02:26.1]} 11. a4 {[%clk
0:02:12.6]} 11... e4 {[%clk 0:02:25.6]} 12. Nfd2 {[%clk 0:02:12.1]} 12... f5
{[%clk 0:02:25.1]} 13. c4 {[%clk 0:02:06.3]} 13... h6 {[%clk 0:02:24.8]} 14. Nc3
{[%clk 0:02:06.2]} 14... Kh7 {[%clk 0:02:24.3]} 15. Qc2 {[%clk 0:01:56.2]} 15...
c5 {[%clk 0:02:14.8]} 16. Nb3 {[%clk 0:01:00.3]} 16... Nf6 {[%clk 0:02:08.5]}
17. Rfd1 {[%clk 0:00:58.7]} 17... Ne8 {[%clk 0:00:53.1]} 18. dxc5 {[%clk
0:00:58.2]} 18... bxc5 {[%clk 0:00:52.2]} 19. Nxc5 {[%clk 0:00:56]} 19... Qc8
{[%clk 0:00:46.7]} 20. Nxb7 {[%clk 0:00:51.2]} 20... Qxb7 {[%clk 0:00:46]} 21.
Bxd6 {[%clk 0:00:51]} 21... Nxd6 {[%clk 0:00:45.3]} 22. Rxd6 {[%clk 0:00:51.9]}
22... Rfd8 {[%clk 0:00:42.5]} 23. Rad1 {[%clk 0:00:48.5]} 23... Rxd6 {[%clk
0:00:41.8]} 24. Rxd6 {[%clk 0:00:49.4]} 24... Qc7 {[%clk 0:00:40.7]} 25. Rd1
{[%clk 0:00:42.1]} 25... Rd8 {[%clk 0:00:32.5]} 26. Rxd8 {[%clk 0:00:35.2]}
26... Qxd8 {[%clk 0:00:31.8]} 27. c5 {[%clk 0:00:35.7]} 27... Qc7 {[%clk
0:00:21.6]} 28. c6 {[%clk 0:00:35.3]} 28... Nc8 {[%clk 0:00:20.6]} 29. Nd5
{[%clk 0:00:34.2]} 29... Qd6 {[%clk 0:00:20.9]} 30. Qc4 {[%clk 0:00:32.7]} 30...
Qe6 {[%clk 0:00:19.9]} 31. b6 {[%clk 0:00:30.3]} 31... f4 {[%clk 0:00:17.6]} 32.
b7 {[%clk 0:00:29.3]} 32... Nd6 {[%clk 0:00:17.9]} 33. Qc5 {[%clk 0:00:27.7]}
33... f3 {[%clk 0:00:16]} 34. Bf1 {[%clk 0:00:23.6]} 34... fxg2 {[%clk 0:00:13]}
35. Bxg2 {[%clk 0:00:24.1]} 35... Nf5 {[%clk 0:00:03.6]} 36. b8=Q {[%clk
0:00:22]} 36... Nh4 {[%clk 0:00:04]} 37. Qg3 {[%clk 0:00:20.9]} 37... Nf5 {[%clk
0:00:03.3]} 38. Qf4 {[%clk 0:00:18.1]} 38... Be5 {[%clk 0:00:03.3]} 39. Qxe4
{[%clk 0:00:18.1]} 39... h5 {[%clk 0:00:01.1]} 40. Nf6+ {[%clk 0:00:17.8]} 40...
Qxf6 {[%clk 0:00:01]} 41. Qcxe5 {[%clk 0:00:17]} 41... Qg5 {[%clk 0:00:01.1]}
42. c7 {[%clk 0:00:15.9]} 1-0